bitfinex/quotes_BTCUSD_20250131
["timestamp","ask_amount","ask_price","bid_price","bid_amount"]
[1738364487189,0.003,102260.0,102250.0,0.36494484]
[1738364488098,0.003,102260.0,102250.0,0.41394484]
[1738364489115,0.002,102260.0,102250.0,0.41394484]
[1738364489433,0.492218,102280.0,102270.0,0.01904]
[1738364491252,0.493218,102280.0,102270.0,0.01904]
[1738364491970,0.493218,102280.0,102270.0,0.0747272]
[1738364492893,0.493218,102280.0,102270.0,0.01904]
[1738364493762,0.498218,102280.0,102270.0,0.01904]
[1738364494622,0.497218,102280.0,102270.0,0.01904]
[1738364495068,0.575418,102280.0,102270.0,0.01904]
[1738364495306,0.577418,102280.0,102270.0,0.01904]
[1738364495806,0.146684,102260.0,102250.0,0.00026268]
[1738364496013,0.146684,102260.0,102250.0,0.01930268]
[1738364496215,0.146684,102260.0,102250.0,0.00026268]
[1738364496628,0.378884,102260.0,102250.0,0.00026268]
[1738364497094,0.378884,102260.0,102250.0,0.02430268]
[1738364497304,0.378884,102260.0,102250.0,0.00526268]
[1738364497505,0.378884,102260.0,102250.0,0.00426268]
[1738364497716,0.378884,102260.0,102250.0,0.00026268]
[1738364497915,0.379884,102260.0,102250.0,0.00026268]
[1738364498124,0.381884,102260.0,102250.0,0.00026268]
[1738364498881,0.57912716,102260.0,102250.0,0.00026268]
[1738364499104,0.62512716,102260.0,102250.0,0.00026268]
[1738364500117,0.73512716,102260.0,102250.0,0.00026268]
[1738364500428,0.63512716,102260.0,102250.0,0.00026268]
[1738364500862,0.66402521,102260.0,102250.0,0.00026268]
[1738364501072,0.69006439,102260.0,102250.0,0.00026268]
[1738364501719,0.60306439,102260.0,102250.0,0.00026268]
[1738364502132,0.60106439,102260.0,102250.0,0.00026268]
[1738364502349,0.60506439,102260.0,102250.0,0.00026268]
[1738364502785,0.60506439,102260.0,102250.0,6.8e-07]
[1738364503205,0.61482584,102260.0,102250.0,6.8e-07]
[1738364503632,0.70157399,102260.0,102250.0,6.8e-07]
[1738364503837,0.70453399,102260.0,102250.0,6.8e-07]
[1738364506105,0.70357399,102260.0,102250.0,6.8e-07]
[1738364506321,0.70453399,102260.0,102250.0,6.8e-07]
[1738364506936,0.396742,102220.0,102210.0,1.81e-06]
[1738364507180,0.57188516,102220.0,102210.0,9.544e-05]
[1738364509370,0.57788516,102220.0,102210.0,0.00109544]
[1738364510218,0.302742,102220.0,102210.0,0.00109544]
[1738364511921,0.633342,102220.0,102210.0,0.00109544]
[1738364513132,0.64328926,102220.0,102210.0,0.00109544]
[1738364514565,0.633342,102220.0,102210.0,0.02409544]
[1738364514774,0.008,102220.0,102210.0,0.42084273]
[1738364515031,0.008,102220.0,102210.0,0.59480905]
[1738364515244,0.008,102220.0,102210.0,0.74480905]
[1738364515684,0.002,102220.0,102210.0,0.74380905]
[1738364515893,0.002,102220.0,102210.0,0.74580905]
[1738364516341,0.3425762,102250.0,102240.0,0.04204]
[1738364517561,0.3435762,102250.0,102240.0,0.04204]
[1738364518340,0.3435762,102250.0,102240.0,0.01904]
[1738364518771,0.3475762,102250.0,102240.0,0.01904]
[1738364520169,0.146727,102230.0,102220.0,0.01904]
[1738364520378,0.146742,102220.0,102210.0,9.544e-05]
[1738364522063,0.146742,102220.0,102210.0,0.01913544]
[1738364522282,0.72258516,102220.0,102210.0,9.544e-05]
[1738364522866,0.82258516,102220.0,102210.0,9.544e-05]
[1738364523131,0.82258516,102220.0,102210.0,0.00209544]
[1738364523519,0.82358516,102220.0,102210.0,9.544e-05]
[1738364523743,0.92358516,102220.0,102210.0,9.544e-05]
[1738364524019,0.95248321,102220.0,102210.0,9.544e-05]
[1738364524898,0.94878321,102220.0,102210.0,9.544e-05]
[1738364525101,1.42260121,102220.0,102210.0,4.4e-07]
[1738364525331,0.84974321,102220.0,102210.0,4.4e-07]
[1738364525883,0.146771,102200.0,102190.0,0.000122]
[1738364526097,0.25061416,102200.0,102190.0,0.00026222]
[1738364526317,0.27951221,102200.0,102190.0,0.00026222]
[1738364526527,0.37951221,102200.0,102190.0,0.00026222]
[1738364527169,0.35161416,102200.0,102190.0,0.00026222]
[1738364528035,0.25161416,102200.0,102190.0,0.00026222]
[1738364528421,0.151771,102200.0,102190.0,0.00026222]
[1738364528838,0.301771,102200.0,102190.0,0.00026222]
[1738364529245,0.296771,102200.0,102190.0,0.00026222]
[1738364529580,0.301771,102200.0,102190.0,0.00026222]
[1738364530777,0.301771,102200.0,102190.0,0.01930222]
[1738364532020,0.49901416,102200.0,102190.0,0.00026222]
[1738364533403,0.79901416,102200.0,102190.0,0.00026222]
[1738364533607,0.82791221,102200.0,102190.0,0.00026222]
[1738364533966,0.95821221,102200.0,102190.0,0.00026222]
[1738364534397,0.96021221,102200.0,102190.0,0.00026222]
[1738364535203,0.9812555,102200.0,102190.0,0.00026222]
[1738364535643,0.9872555,102200.0,102190.0,0.00126222]
[1738364535807,0.99731164,102200.0,102190.0,0.00126222]
[1738364537058,0.62110285,102200.0,102190.0,0.00126222]
[1738364537258,0.53880285,102200.0,102190.0,0.00126222]
[1738364537470,0.5187503,102200.0,102190.0,0.00126222]
[1738364537693,0.4187503,102200.0,102190.0,0.00126222]
[1738364539160,0.4120703,102200.0,102190.0,0.00126222]
[1738364541185,0.31482714,102200.0,102190.0,0.00126222]
[1738364542005,0.16282714,102200.0,102190.0,0.02030222]
[1738364542215,0.008,102200.0,102190.0,0.19603294]
[1738364542426,0.148771,102200.0,102190.0,0.01930222]
[1738364542632,0.003,102200.0,102190.0,0.55863938]
[1738364542893,0.003,102200.0,102190.0,0.68728399]
[1738364543094,0.004,102200.0,102190.0,0.60413938]
[1738364543306,0.151771,102200.0,102190.0,0.12236222]
[1738364543516,0.151771,102200.0,102190.0,0.14140222]
[1738364543517,0.146771,102200.0,102190.0,0.14140222]
[1738364543726,0.342452,102210.0,102200.0,0.01904]
[1738364543938,0.146749,102220.0,102210.0,0.165796]
[1738364544141,0.342376,102230.0,102210.0,0.34403916]
[1738364544376,0.342376,102230.0,102210.0,0.73538716]
[1738364544793,0.56284146,102240.0,102230.0,0.165767]
[1738364544999,0.56283246,102240.0,102230.0,0.246767]
[1738364545412,0.23423246,102240.0,102230.0,0.10004]
[1738364545654,0.146727,102230.0,102220.0,0.01904]
[1738364545862,0.146727,102230.0,102210.0,0.10004]
[1738364545863,0.146742,102220.0,102210.0,0.10004]
[1738364548384,0.146742,102220.0,102210.0,0.10204]
[1738364548774,0.146742,102220.0,102210.0,0.10304]
[1738364549290,0.296742,102220.0,102210.0,0.003]
[1738364550313,0.296742,102220.0,102210.0,0.002]
[1738364551104,0.146771,102200.0,102190.0,0.094562]
[1738364551308,0.146771,102200.0,102190.0,0.19194538]
[1738364551996,0.342446,102210.0,102200.0,0.01904]
[1738364552362,0.199662,102220.0,102210.0,0.06444]
[1738364552574,0.195662,102220.0,102210.0,0.06444]
[1738364552993,0.345662,102220.0,102210.0,0.0454]
[1738364553201,0.146756,102210.0,102200.0,0.01904]
[1738364553407,0.492416,102220.0,102210.0,0.01904]
[1738364553621,0.001,102220.0,102210.0,0.26303916]
[1738364553821,0.147742,102220.0,102210.0,0.33843916]
[1738364554050,0.147742,102220.0,102210.0,0.19168316]
[1738364554907,0.146742,102220.0,102210.0,0.19168316]
[1738364555109,0.147742,102220.0,102210.0,0.19168316]
[1738364555335,0.149742,102220.0,102210.0,0.19168316]
[1738364555762,0.147742,102220.0,102210.0,0.19168316]
[1738364557406,0.147742,102220.0,102210.0,0.0754]
[1738364557629,0.146756,102210.0,102200.0,0.01904]
[1738364558897,0.146756,102210.0,102200.0,0.02004]
[1738364559260,0.146756,102210.0,102200.0,0.02204]
[1738364559974,0.146756,102210.0,102200.0,0.02104]
[1738364561005,0.146756,102210.0,102200.0,0.01904]
[1738364561484,0.147756,102210.0,102200.0,0.01904]
[1738364561984,0.147756,102210.0,102200.0,0.019162]
[1738364562243,0.297756,102210.0,102200.0,0.019162]
[1738364570058,0.147756,102210.0,102200.0,0.019162]
[1738364570289,0.147756,102210.0,102200.0,0.28617616]
[1738364570501,0.001,102210.0,102200.0,0.36597616]
[1738364570733,0.001,102210.0,102200.0,0.41277616]
[1738364572450,0.001,102210.0,102200.0,0.54142077]
[1738364572664,0.001,102210.0,102200.0,0.63877753]
[1738364573598,0.0002562,102220.0,102210.0,0.01904]
[1738364573814,0.0002562,102220.0,102210.0,0.39061732]
[1738364574038,0.0002562,102220.0,102210.0,0.38963916]
[1738364575070,0.0012562,102220.0,102210.0,0.38963916]
[1738364575283,0.0012562,102220.0,102210.0,0.63864053]
[1738364576961,0.0012562,102220.0,102210.0,0.41263916]
[1738364578202,0.1479982,102220.0,102210.0,0.38963916]
[1738364578423,0.0012562,102220.0,102210.0,0.38963916]
[1738364579060,0.0012562,102220.0,102210.0,0.41263916]
[1738364581293,0.1479982,102220.0,102210.0,0.24288316]
[1738364581499,0.1479982,102220.0,102210.0,0.11628316]
[1738364581702,0.1479982,102220.0,102210.0,0.01904]
[1738364582139,0.3436552,102220.0,102210.0,0.01904]
[1738364582355,0.1969132,102220.0,102210.0,0.01904]
[1738364582558,0.3436552,102220.0,102210.0,0.01904]
[1738364583301,0.146756,102210.0,102200.0,0.169892]
[1738364583507,0.146756,102210.0,102200.0,0.26713516]
[1738364584088,0.146756,102210.0,102200.0,0.12036516]
[1738364584379,0.146756,102210.0,102200.0,0.13940516]
[1738364584588,0.146756,102210.0,102200.0,0.14240516]
[1738364584821,0.146756,102210.0,102200.0,0.12336516]
[1738364590365,0.146756,102210.0,102200.0,0.12236516]
[1738364590565,0.146756,102210.0,102200.0,0.12036516]
[1738364590768,0.147756,102210.0,102200.0,0.12036516]
[1738364591125,0.146756,102210.0,102200.0,0.12036516]
[1738364591312,0.146756,102210.0,102200.0,0.26913616]
[1738364591513,0.146756,102210.0,102200.0,0.12236516]
[1738364592101,0.146756,102210.0,102200.0,0.26913616]
[1738364592835,0.146756,102210.0,102200.0,0.27013616]
[1738364593182,0.146756,102210.0,102200.0,0.12336516]
[1738364594783,0.146756,102210.0,102200.0,0.003122]
[1738364594993,0.146756,102210.0,102200.0,0.022162]
[1738364595799,0.146756,102210.0,102200.0,0.021162]
[1738364596148,0.146756,102210.0,102200.0,0.002122]
[1738364596360,0.146756,102210.0,102200.0,0.021162]
[1738364596757,0.146756,102210.0,102200.0,0.000122]
[1738364596961,0.147756,102210.0,102200.0,0.000122]
[1738364597375,0.147756,102210.0,102200.0,0.019162]
[1738364601034,0.47419916,102210.0,102200.0,0.000122]
[1738364601244,0.52999916,102210.0,102200.0,0.000122]
[1738364601456,0.53671916,102210.0,102200.0,0.000122]
[1738364602576,0.53771916,102210.0,102200.0,0.000122]
[1738364603352,0.63771916,102210.0,102200.0,0.000122]
[1738364603587,0.63671916,102210.0,102200.0,0.000122]
[1738364603844,0.63971916,102210.0,102200.0,0.000122]
[1738364605581,0.64953622,102210.0,102200.0,0.000122]
[1738364606083,0.66887445,102210.0,102200.0,0.000122]
[1738364609204,0.66913065,102210.0,102200.0,0.000122]
[1738364609409,0.52741065,102210.0,102200.0,0.000122]
[1738364609753,0.53409065,102210.0,102200.0,0.000122]
[1738364611045,0.31082926,102210.0,102200.0,0.000122]
[1738364617236,0.40807242,102210.0,102200.0,0.000122]
[1738364620167,0.50807242,102210.0,102200.0,0.000122]
[1738364620516,0.51981235,102210.0,102190.0,0.00026222]
[1738364620703,0.35401416,102200.0,102190.0,0.00026222]
[1738364620903,0.45401416,102200.0,102190.0,0.00026222]
[1738364621307,0.48225326,102200.0,102190.0,0.00026222]
[1738364621692,0.34401416,102200.0,102190.0,0.00026222]
[1738364621876,0.35001416,102200.0,102190.0,0.00126222]
[1738364622261,0.36001416,102200.0,102190.0,0.00126222]
[1738364622690,0.46201416,102200.0,102190.0,0.00126222]
[1738364622921,0.36201416,102200.0,102190.0,0.00126222]
[1738364623569,0.46201416,102200.0,102190.0,0.00126222]
[1738364626396,0.35201416,102200.0,102190.0,0.00126222]
[1738364626578,0.36201416,102200.0,102190.0,0.00126222]
[1738364627461,0.25873416,102200.0,102190.0,0.00126222]
[1738364627997,0.26201416,102200.0,102190.0,0.00126222]
[1738364628199,0.26877416,102200.0,102190.0,0.00126222]
[1738364629398,0.36877416,102200.0,102190.0,0.00126222]
[1738364631494,0.36877416,102200.0,102190.0,2.2e-07]
[1738364631702,0.86579576,102200.0,102190.0,2.2e-07]
[1738364632072,1.03879576,102200.0,102190.0,2.2e-07]
[1738364632258,1.11473486,102200.0,102190.0,2.2e-07]
[1738364633161,0.156785,102190.0,102180.0,0.00021621]
[1738364633362,0.25402816,102190.0,102180.0,0.00069569]
[1738364634298,0.35078816,102190.0,102180.0,0.00069569]
[1738364634668,0.35378816,102190.0,102180.0,0.00069569]
[1738364635284,0.35478816,102190.0,102180.0,0.00069569]
[1738364636984,0.37430842,102190.0,102180.0,0.00069569]
[1738364638890,0.24802816,102190.0,102180.0,0.08189569]
[1738364640586,0.24802816,102190.0,102180.0,0.12829569]
[1738364640946,0.34802816,102190.0,102180.0,0.12829569]
[1738364641146,0.35795816,102190.0,102180.0,0.12829569]
[1738364641674,0.35795816,102190.0,102180.0,0.00069569]
[1738364641885,0.39487976,102190.0,102180.0,0.00069569]
[1738364642634,0.48487976,102190.0,102180.0,0.00069569]
[1738364645509,0.39487976,102190.0,102180.0,0.00069569]
[1738364645729,0.39513596,102190.0,102180.0,0.00069569]
[1738364648062,0.48265542,102190.0,102180.0,6.9e-07]
[1738364648215,0.55855542,102190.0,102180.0,6.9e-07]
[1738364649010,0.58265542,102190.0,102180.0,6.9e-07]
[1738364649230,0.58165542,102190.0,102180.0,6.9e-07]
[1738364649431,0.58065542,102190.0,102180.0,6.9e-07]
[1738364649748,0.58665542,102190.0,102180.0,6.9e-07]
[1738364651960,0.54973382,102190.0,102180.0,6.9e-07]
[1738364652337,0.55653382,102190.0,102180.0,6.9e-07]
[1738364653703,0.56653382,102190.0,102180.0,6.9e-07]
[1738364654110,0.71653382,102190.0,102180.0,6.9e-07]
[1738364654326,0.86236277,102190.0,102180.0,6.9e-07]
[1738364654736,0.65326277,102190.0,102180.0,6.9e-07]
[1738364654943,0.61653382,102190.0,102180.0,6.9e-07]
[1738364655118,0.61453382,102190.0,102180.0,6.9e-07]
[1738364655542,0.61153382,102190.0,102180.0,6.9e-07]
[1738364655794,0.98849719,102190.0,102180.0,6.9e-07]
[1738364656115,0.99849719,102190.0,102180.0,6.9e-07]
[1738364656329,1.07549719,102190.0,102180.0,6.9e-07]
[1738364656987,0.98497773,102190.0,102180.0,6.9e-07]
[1738364657212,0.98797773,102190.0,102180.0,6.9e-07]
[1738364659510,0.246814,102170.0,102160.0,0.127722]
[1738364660771,0.247814,102170.0,102160.0,0.127722]
[1738364662012,0.250814,102170.0,102160.0,0.127722]
[1738364666071,0.34805716,102170.0,102160.0,0.127722]
[1738364667369,0.35785619,102170.0,102160.0,0.127722]
[1738364668306,0.44578886,102170.0,102160.0,0.127722]
[1738364669517,0.77438886,102170.0,102160.0,0.127722]
[1738364671860,0.37261429,102170.0,102160.0,0.000122]
[1738364672706,0.47261429,102170.0,102160.0,0.000122]
[1738364673351,0.48261429,102170.0,102160.0,0.000122]
[1738364675225,0.51075223,102170.0,102160.0,0.000122]
[1738364675876,0.42281956,102170.0,102160.0,0.000122]
[1738364676281,0.42281956,102170.0,102150.0,0.130922]
[1738364676492,0.49407116,102160.0,102150.0,0.13089822]
[1738364677269,0.52089659,102160.0,102150.0,0.13089822]
[1738364678127,0.52089659,102160.0,102150.0,0.04949822]
[1738364680017,0.52389659,102160.0,102150.0,0.04949822]
[1738364680777,0.6118853,102160.0,102150.0,9.822e-05]
[1738364681004,0.64002324,102160.0,102150.0,9.822e-05]
[1738364681206,0.64102324,102160.0,102150.0,9.822e-05]
[1738364683643,0.66063888,102160.0,102150.0,9.822e-05]
[1738364685114,1.07063888,102160.0,102150.0,9.822e-05]
[1738364685223,0.77063888,102160.0,102150.0,9.822e-05]
[1738364687168,0.73250094,102160.0,102150.0,9.822e-05]
[1738364687386,0.70567551,102160.0,102150.0,9.822e-05]
[1738364689982,0.60567551,102160.0,102150.0,9.822e-05]
[1738364690184,0.61251551,102160.0,102150.0,9.822e-05]
[1738364691705,0.71251551,102160.0,102150.0,9.822e-05]
[1738364691905,0.73934094,102160.0,102150.0,9.822e-05]
[1738364694505,0.72774094,102160.0,102150.0,9.822e-05]
[1738364694711,0.506842,102150.0,102140.0,3.2e-07]
[1738364694927,0.60408516,102150.0,102140.0,3.2e-07]
[1738364695131,0.63091059,102150.0,102140.0,3.2e-07]
[1738364695401,0.65904999,102150.0,102140.0,3.2e-07]
[1738364695797,0.55904999,102150.0,102140.0,3.2e-07]
[1738364695935,0.55904999,102150.0,102140.0,9.385e-05]
[1738364697854,0.56704999,102150.0,102140.0,9.385e-05]
[1738364699479,0.65704999,102150.0,102140.0,9.385e-05]
[1738364699691,0.62891059,102150.0,102140.0,9.385e-05]
[1738364699898,0.7168993,102150.0,102140.0,9.385e-05]
[1738364700307,0.7168993,102150.0,102140.0,0.08129385]
[1738364700494,0.49687387,102150.0,102140.0,0.08129385]
[1738364701457,0.59687387,102150.0,102140.0,9.385e-05]
[1738364701668,0.59987387,102150.0,102140.0,9.385e-05]
[1738364702013,0.39583071,102150.0,102140.0,0.12909385]
[1738364702505,0.4056961,102150.0,102140.0,0.12909385]
[1738364702873,0.31770739,102150.0,102140.0,0.12909385]
[1738364703277,0.30970739,102150.0,102140.0,0.12909385]
[1738364703492,0.31570739,102150.0,102140.0,0.12909385]
[1738364703885,0.31270739,102150.0,102140.0,0.12909385]
[1738364704086,0.31570739,102150.0,102140.0,0.12909385]
[1738364704610,0.31270739,102150.0,102140.0,0.12909385]
[1738364708442,0.31470739,102150.0,102140.0,0.12909385]
[1738364710958,0.64330739,102150.0,102140.0,0.12909385]
[1738364711591,0.64356359,102150.0,102140.0,0.12909385]
[1738364717967,0.66305154,102150.0,102140.0,0.12909385]
[1738364721864,0.64356359,102150.0,102140.0,0.12909385]
[1738364722798,0.64356359,102150.0,102140.0,9.385e-05]
[1738364724488,0.64356359,102150.0,102140.0,0.04669385]
[1738364728604,0.64356359,102150.0,102140.0,9.385e-05]
[1738364731990,0.64637013,102150.0,102140.0,9.385e-05]
[1738364742546,0.31777013,102150.0,102140.0,9.385e-05]
[1738364744362,0.39467013,102150.0,102140.0,9.385e-05]
[1738364745796,0.48265884,102150.0,102140.0,9.385e-05]
[1738364752369,0.40575884,102150.0,102140.0,9.385e-05]
[1738364761624,0.65272743,102150.0,102140.0,9.385e-05]
[1738364764050,0.56473872,102150.0,102140.0,9.385e-05]
[1738364764886,0.56473872,102150.0,102140.0,8.5e-07]
[1738364765956,0.66473872,102150.0,102140.0,8.5e-07]
[1738364766258,0.246857,102140.0,102130.0,0.00015166]
[1738364766469,0.34410016,102140.0,102130.0,0.0001996]
[1738364766693,0.34685862,102140.0,102130.0,0.0001996]
[1738364767280,0.34785862,102140.0,102130.0,0.0001996]
[1738364767673,0.35085862,102140.0,102130.0,0.0001996]
[1738364770209,0.50232086,102140.0,102130.0,0.0001996]
[1738364770661,0.65102086,102140.0,102130.0,6e-07]
[1738364770870,0.68736289,102140.0,102130.0,6e-07]
[1738364771072,0.146886,102120.0,102110.0,0.7]
[1738364771226,0.153566,102120.0,102110.0,0.70004794]
[1738364771432,0.15624515,102120.0,102110.0,0.70004794]
[1738364772333,0.35348831,102120.0,102110.0,0.70004794]
[1738364774578,0.51041374,102120.0,102110.0,0.70004794]
[1738364776277,0.85672774,102120.0,102110.0,0.70004794]
[1738364776696,0.85672774,102120.0,102110.0,0.60211294]
[1738364776697,1.09471018,102120.0,102110.0,0.60211294]
[1738364776901,1.10471018,102120.0,102110.0,0.60211294]
[1738364777114,1.10471018,102120.0,102110.0,0.52376494]
[1738364777115,1.12691392,102120.0,102110.0,0.52376494]
[1738364777326,1.12691392,102120.0,102110.0,0.50417794]
[1738364777923,1.15325595,102120.0,102110.0,0.50417794]
[1738364778464,0.1,102100.0,102090.0,0.000122]
[1738364778670,0.1,102100.0,102080.0,0.0347347]
[1738364778671,0.396929,102090.0,102080.0,0.0347347]
[1738364778854,0.49417216,102090.0,102080.0,0.01574265]
[1738364779100,0.52364615,102090.0,102080.0,0.01574265]
[1738364779316,0.52364615,102090.0,102080.0,0.03478265]
[1738364779524,0.52364615,102090.0,102080.0,0.01574265]
[1738364779727,0.52364615,102090.0,102080.0,0.03478265]
[1738364780356,0.52464615,102090.0,102080.0,0.03478265]
[1738364780990,0.52464615,102090.0,102080.0,0.01574265]
[1738364781205,0.52464615,102090.0,102080.0,0.03478265]
[1738364782301,0.49782072,102090.0,102080.0,0.03478265]
[1738364782688,0.49782072,102090.0,102080.0,0.01574265]
[1738364783124,0.67802072,102090.0,102080.0,0.01574265]
[1738364783343,0.70484615,102090.0,102080.0,0.01574265]
[1738364783546,0.69765974,102090.0,102080.0,6.5e-07]
[1738364783747,0.72448517,102090.0,102080.0,6.5e-07]
[1738364783955,0.72748517,102090.0,102080.0,6.5e-07]
[1738364784336,0.72348517,102090.0,102080.0,6.5e-07]
[1738364784538,0.68665974,102090.0,102080.0,6.5e-07]
[1738364784746,0.58665974,102090.0,102080.0,6.5e-07]
[1738364784905,0.50645974,102090.0,102080.0,0.07520065]
[1738364785110,0.40645974,102090.0,102080.0,0.08273291]
[1738364785298,0.14957756,102090.0,102080.0,0.12440065]
[1738364785944,0.29957756,102090.0,102080.0,0.12440065]
[1738364786069,0.29949658,102090.0,102080.0,0.12440065]
[1738364786280,0.30149658,102090.0,102080.0,0.12440065]
[1738364786683,0.29949658,102090.0,102080.0,0.12440065]
[1738364787006,0.29949658,102090.0,102080.0,0.12540065]
[1738364787206,0.30549658,102090.0,102080.0,0.12540065]
[1738364788749,0.29949658,102090.0,102080.0,0.12540065]
[1738364789148,0.29949658,102090.0,102080.0,0.12440065]
[1738364789809,0.30249658,102090.0,102080.0,0.12440065]
[1738364790012,0.30349658,102090.0,102080.0,0.12440065]
[1738364791243,0.30349658,102090.0,102080.0,6.5e-07]
[1738364791443,0.40349658,102090.0,102080.0,6.5e-07]
[1738364792658,0.30349658,102090.0,102080.0,6.5e-07]
[1738364792869,0.30349658,102090.0,102080.0,0.00012265]
[1738364797989,0.40349658,102090.0,102080.0,0.00012265]
[1738364799259,0.52889658,102090.0,102080.0,0.00012265]
[1738364799470,0.62613974,102090.0,102080.0,0.00012265]
[1738364801241,0.47929172,102090.0,102070.0,9.621e-05]
[1738364801455,0.146943,102080.0,102070.0,0.00023995]
[1738364801822,0.14957699,102080.0,102070.0,0.00023995]
[1738364804730,0.14957699,102080.0,102070.0,0.00123995]
[1738364805663,0.14957699,102080.0,102070.0,0.00023995]
[1738364805882,0.15057699,102080.0,102070.0,0.00023995]
[1738364806517,0.15357699,102080.0,102070.0,0.00023995]
[1738364807386,0.1634522,102080.0,102070.0,0.00023995]
[1738364809738,0.18319853,102080.0,102070.0,0.00023995]
[1738364814978,0.1634522,102080.0,102070.0,0.00023995]
[1738364817149,0.15383341,102080.0,102070.0,0.39055983]
[1738364817355,0.15383341,102080.0,102070.0,0.47630381]
[1738364817738,0.00689041,102080.0,102070.0,0.38958011]
[1738364818026,0.00589041,102080.0,102070.0,0.38958011]
[1738364818239,0.15283341,102080.0,102070.0,0.38958011]
[1738364818447,0.15283341,102080.0,102070.0,0.39058011]
[1738364818684,0.14983341,102080.0,102070.0,0.39058011]
[1738364818883,0.29983341,102080.0,102070.0,0.22458311]
[1738364819097,0.29983341,102080.0,102070.0,0.39058011]
[1738364819504,0.29983341,102080.0,102070.0,0.24362311]
[1738364820370,0.00289041,102080.0,102070.0,0.41358011]
[1738364820575,0.00289041,102080.0,102070.0,0.64007054]
[1738364820986,0.00289041,102080.0,102070.0,0.51093687]
[1738364821230,0.00289041,102080.0,102070.0,0.50993687]
[1738364821458,0.00289041,102080.0,102070.0,0.51093687]
[1738364821872,0.00289041,102080.0,102070.0,0.50993687]
[1738364823116,0.00289041,102080.0,102070.0,0.41258011]
[1738364823761,0.00289041,102080.0,102070.0,0.41358011]
[1738364824619,0.00289041,102080.0,102070.0,0.54271378]
[1738364825460,0.00047916,102080.0,102070.0,0.69271378]
[1738364825672,0.0002562,102090.0,102080.0,0.475983]
[1738364825873,0.00259015,102090.0,102080.0,0.70235983]
[1738364826717,0.00259015,102090.0,102080.0,0.8314935]
[1738364826913,0.00259015,102090.0,102080.0,0.8514935]
[1738364827136,0.00025642,102120.0,102110.0,0.31594]
[1738364827414,0.00025642,102120.0,102110.0,0.63597303]
[1738364828434,0.00025642,102120.0,102110.0,0.63697303]
[1738364829028,0.00025642,102120.0,102110.0,0.63997303]
[1738364831383,0.00025642,102120.0,102110.0,0.9291067]
[1738364831890,0.00025642,102120.0,102110.0,0.81997303]
[1738364832059,0.00025642,102120.0,102110.0,0.9491067]
[1738364832255,0.00025642,102120.0,102110.0,0.9461067]
[1738364832462,0.00021582,102150.0,102140.0,0.292697]
[1738364832673,0.00247314,102150.0,102140.0,0.63008863]
[1738364835066,0.00647314,102150.0,102140.0,0.63008863]
[1738364835273,0.00247314,102150.0,102140.0,0.63008863]
[1738364835479,0.00247314,102150.0,102140.0,0.63308863]
[1738364835651,0.00347314,102150.0,102140.0,0.64108863]
[1738364837552,0.00347314,102150.0,102140.0,0.52193082]
[1738364837750,0.00347314,102150.0,102140.0,0.51195496]
[1738364838689,0.00347314,102150.0,102140.0,0.53171986]
[1738364841712,0.00347314,102150.0,102140.0,0.53184186]
[1738364842569,0.15031514,102150.0,102140.0,0.44382706]
[1738364842982,0.00347314,102150.0,102140.0,0.44382706]
[1738364843191,0.00347314,102150.0,102140.0,0.42406216]
[1738364843404,0.15031514,102150.0,102140.0,0.12740516]
[1738364844903,0.14931514,102150.0,102140.0,0.11640516]
[1738364845319,0.15031514,102150.0,102140.0,0.12140516]
[1738364845939,0.15031514,102150.0,102140.0,0.10236516]
[1738364846148,0.15031514,102150.0,102140.0,0.12340516]
[1738364846790,0.15031514,102150.0,102140.0,0.026162]
[1738364846968,0.15031514,102150.0,102140.0,0.007122]
[1738364847611,0.15031514,102150.0,102140.0,0.005122]
[1738364848266,0.29931514,102150.0,102140.0,0.000122]
[1738364848471,0.42581514,102150.0,102140.0,0.000122]
[1738364848872,0.42681514,102150.0,102140.0,0.000122]
[1738364852620,0.30031514,102150.0,102140.0,0.019162]
[1738364855029,0.30031514,102150.0,102140.0,0.000122]
[1738364855197,0.30031514,102150.0,102140.0,0.019162]
[1738364859172,0.30031514,102150.0,102140.0,0.000122]
[1738364859383,0.30031514,102150.0,102140.0,0.019162]
[1738364860969,0.30031514,102150.0,102140.0,0.000122]
[1738364862508,0.30031514,102150.0,102140.0,0.019162]
[1738364863920,0.30031514,102150.0,102140.0,0.000122]
[1738364864746,0.30179514,102150.0,102140.0,0.000122]
[1738364865256,0.4990383,102150.0,102140.0,0.000122]
[1738364865466,0.6215383,102150.0,102140.0,0.000122]
[1738364866706,0.6215383,102150.0,102140.0,1e-06]
[1738364867835,0.6205383,102150.0,102140.0,1e-06]
[1738364868049,0.6235383,102150.0,102140.0,1e-06]
[1738364868664,0.146886,102120.0,102110.0,0.06694]
[1738364868852,0.146886,102120.0,102110.0,0.0479]
[1738364869046,0.14910749,102120.0,102110.0,0.0479]
[1738364869307,0.14910749,102120.0,102110.0,0.06694]
[1738364870975,0.14910749,102120.0,102110.0,0.08168193]
[1738364871173,0.14910749,102120.0,102110.0,0.15668193]
[1738364871568,0.15010749,102120.0,102110.0,0.16168193]
[1738364872412,0.15010749,102120.0,102110.0,0.25892509]
[1738364872614,0.15010749,102120.0,102110.0,0.40582509]
[1738364874155,0.15010749,102120.0,102110.0,0.38678509]
[1738364874362,0.15010749,102120.0,102110.0,0.40582509]
[1738364876078,0.15010749,102120.0,102110.0,0.40794709]
[1738364879599,0.15010749,102120.0,102110.0,0.39320516]
[1738364880625,0.00322149,102120.0,102110.0,0.54533883]
[1738364884888,0.15010749,102120.0,102110.0,0.39320516]
[1738364885298,0.15010749,102120.0,102110.0,0.22726516]
[1738364885509,0.00322149,102120.0,102110.0,0.41620516]
[1738364885711,0.00322149,102120.0,102110.0,0.51356192]
[1738364885910,0.00322149,102120.0,102110.0,0.41620516]
[1738364886116,0.00322149,102120.0,102110.0,0.54533883]
[1738364887850,0.00322149,102120.0,102110.0,0.57589183]
[1738364890505,0.15010749,102120.0,102110.0,0.24630516]
[1738364890720,0.15010749,102120.0,102110.0,0.39320516]
[1738364891974,0.15010749,102120.0,102110.0,0.44502669]
[1738364892603,0.00322149,102120.0,102110.0,0.44502669]
[1738364893871,0.15010749,102120.0,102110.0,0.44502669]
[1738364895791,0.15010749,102120.0,102110.0,0.42598669]
[1738364895989,0.15010749,102120.0,102110.0,0.44502669]
[1738364898821,0.15010749,102120.0,102110.0,0.10436516]
[1738364900296,0.15010749,102120.0,102110.0,0.12340516]
[1738364900492,0.15010749,102120.0,102110.0,0.10436516]
[1738364901010,0.30010749,102120.0,102110.0,0.007122]
[1738364901868,0.30010749,102120.0,102110.0,0.005122]
[1738364902049,0.30010749,102120.0,102110.0,0.000122]
[1738364902050,0.29910749,102120.0,102110.0,0.000122]
[1738364902224,0.29910749,102120.0,102110.0,0.003122]
[1738364902433,0.29910749,102120.0,102110.0,0.004122]
[1738364902645,0.29910749,102120.0,102110.0,0.001122]
[1738364902970,0.30010749,102120.0,102110.0,0.001122]